Cogmind - Beta 13 @@@ ROGUE MODE // 2024.04.09 @ 16:33:58 Player: lucasboxerhead Result: Self-destructed Performance ------------- Evolutions (2) 1000 Regions Visited (4) 800 Robots Destroyed (35) 175 Value Destroyed (883) 883 Prototype IDs (0) 0 Alien Tech Used (0) 0 Bonus (0) 0 TOTAL SCORE: 2858 Bonus ------- None Cogmind --------- Core Integrity 437/550 Matter 25/400 Energy 100/100 System Corruption 0% Temperature Cool (25) Movement Core (300) Ox5 Location -8/Materials Parts ------- > --- POWER (1) -------- (None) > --- PROPULSION (4) --- (None) > --- UTILITY (3) ------ Small Storage Unit Medium Matter Pod Power Shielding > --- WEAPON (3) ------- Assault Cannon Assault Cannon > --- INVENTORY (8) ---- Ion Engine Ion Engine Flak Cannon Peak State ------------ > --- POWER ------------ Improved Ion Engine > --- PROPULSION ------- Light Treads Improved Treads > --- UTILITY ---------- Small Storage Unit Medium Matter Pod Power Shielding > --- WEAPON ----------- Assault Cannon Assault Cannon Assault Cannon > --- INVENTORY -------- Ion Engine Ion Engine [Rating: 17] Favorites ----------- Power Improved Ion Engine Engine Improved Ion Engine Propulsion Light Treads Treads Light Treads Utility Small Storage Unit Device Sensor Array Storage Small Storage Unit Protection Power Shielding Weapon Light Assault Rifle Ballistic Gun Light Assault Rifle Ballistic Cannon Assault Cannon Build | -11 -10 -9 -9 -8 ------- Run | Yrd Mat Mat Min Mat Slots Evolved 4 | . . 2 . 2 Power . | . . . . . Propulsion 2 | . . 2 . . Utility 1 | . . . . 1 Weapon 1 | . . . . 1 Parts Attached 25 | 6 2 15 . 2 Power 2 | 1 . 1 . . Engine 2 | 1 . 1 . . Core . | . . . . . Reactor . | . . . . . Propulsion 6 | 2 . 4 . . Treads 6 | 2 . 4 . . Leg . | . . . . . Wheel . | . . . . . Hover . | . . . . . Flight . | . . . . . Utility 5 | 1 2 1 . 1 Device 1 | . 1 . . . Storage 2 | 1 . 1 . . Processor . | . . . . . Hackware . | . . . . . Protection 2 | . 1 . . 1 Artifact . | . . . . . Weapon 12 | 2 . 9 . 1 Energy Gun . | . . . . . Energy Cannon . | . . . . . Ballistic Gun 7 | 2 . 5 . . Ballistic Cannon 5 | . . 4 . 1 Launcher . | . . . . . Special Weapon . | . . . . . Impact Weapon . | . . . . . Slashing Weapon . | . . . . . Piercing Weapon . | . . . . . Special Melee Weapon . | . . . . . Unidentified Prototypes . | . . . . . Parts Lost 8 | . . 4 . 4 Power 1 | . . . . 1 Propulsion 4 | . . 2 . 2 Utility 1 | . . 1 . . Weapon 2 | . . 1 . 1 Highest Loss Streak 4 | . . 2 . 4 To Critical Strikes . | . . . . . Average Slot Usage (%) 84 | . 89 82 77 76 Engine 11 | . 14 11 11 8 Treads 28 | . 28 31 22 15 Device 5 | . 2 8 . . Storage 13 | . 14 11 22 18 Ballistic Gun 18 | . 28 17 . . Ballistic Cannon 5 | . . 3 22 26 Naked Turns . | . . . . . Heaviest Build 30 | 10 11 24 24 30 Greatest Support 83 | 40 40 83 43 43 Greatest Overweight (x) 5 | . . . . 5 Average Overweight (x) . | . . . . . Largest Inventory Capacity 8 | 8 8 8 8 8 Average Capacity 7 | 6 8 8 8 8 Most Carried 8 | . 3 8 4 3 Average Carried 4 | . 1 5 4 2 Final Capacity 8 | 8 8 8 8 8 Final Carried 4 | . 3 4 4 3 Class Distribution -------------------- 62% | Mutant 30% | Scavenger-Mutant 7% | Tank Dominant Class ---------------- Mutant | -10/Materials Scavenger-Mutant | -9/Materials Mutant | -9/Mines Tank | -8/Materials Resources | -11 -10 -9 -9 -8 ----------- Run | Yrd Mat Mat Min Mat Matter Collected 674 | 245 75 289 65 . Remotely . | . . . . . Salvage Created 1126 | . 217 795 40 74 Parts 70 | . 14 55 . 1 Haulers Intercepted . | . . . . . Recyclers Shooed 6 | . 2 4 . . Parts Field Recycled . | . . . . . Retrieved Matter . | . . . . . Parts Self-Destructed . | . . . . . Prevented . | . . . . . Kills | -11 -10 -9 -9 -8 ------- Run | Yrd Mat Mat Min Mat Combat Hostiles Destroyed 31 | . 7 20 2 2 Guns 27 | . 7 20 . . Cannons 4 | . . . 2 2 Classes Destroyed 7 | . 3 3 1 . Recycler 2 | . . 2 . . Watcher 2 | . 2 . . . Swarmer 12 | . 5 7 . . Grunt 15 | . 2 11 1 1 Brawler 1 | . . . 1 . Duelist 1 | . . 1 . . Sentry 2 | . . 1 . 1 Best Kill Streak 7 | . 4 7 2 1 Combat Bots Only 7 | . 3 7 2 1 Max Kills in Single Turn 1 | . 1 1 1 1 Gunslinging . | . . . . . Exploded . | . . . . . Melee . | . . . . . Uniques/NPCs Destroyed . | . . . . . Combat | -11 -10 -9 -9 -8 -------- Run | Yrd Mat Mat Min Mat Hostile Shots Fired 176 | . 26 92 2 56 Missed 57 | . 3 30 2 22 Damage Taken 1487 | . 202 725 . 560 Core 217 | . 17 87 . 113 Absorbed by Shields . | . . . . . Redirected to Shielding 9 | . . . . 9 Core Remaining (%) 90 | 100 93 . 78 . Volleys Fired 125 | . 26 83 7 9 Largest 3 | . 2 2 2 3 Hottest 132 | . 40 88 88 132 Shots Fired 251 | . 52 158 14 27 Gun 195 | . 52 143 . . Cannon 56 | . . 15 14 27 Launcher . | . . . . . Special . | . . . . . Kinetic 251 | . 52 158 14 27 Thermal . | . . . . . Explosive . | . . . . . Electromagnetic . | . . . . . Robot Hit Streak 8 | . 4 8 4 2 Robot Miss Streak 6 | . 3 5 1 6 Penetration Max . | . . . . . Secondary Targets 3 | . 1 2 . . Max Gunslinging Chain 1 | . 1 1 . . Shots Hit Robots 142 | . 28 98 9 7 Core Hits 73 | . 22 46 2 3 Critical Kills 1 | . . 1 . . Critical Parts Destroyed . | . . . . . Critical Strikes 2 | . . 1 1 . Destroy 1 | . . 1 . . Blast 1 | . . . 1 . Melee Attacks . | . . . . . Impact . | . . . . . Slashing . | . . . . . Piercing . | . . . . . Sneak Attacks . | . . . . . Combat Hostiles . | . . . . . Follow-up Attacks . | . . . . . Damage Inflicted 1705 | . 239 1011 245 210 Guns 1094 | . 230 864 . . Cannons 581 | . . 127 245 209 Explosions . | . . . . . Melee . | . . . . . Ramming 30 | . 9 20 . 1 Kinetic 1675 | . 230 991 245 209 Thermal . | . . . . . Explosive . | . . . . . Electromagnetic . | . . . . . Impact . | . . . . . Slashing . | . . . . . Piercing . | . . . . . Highest Corruption 1 | . . 1 1 . Average Corruption 1 | . . 1 1 . Corruption Purged . | . . . . . Corruption Blocked . | . . . . . Effects 7 | . . 5 2 . Message Errors 1 | . . 1 . . Matter Fused 2 | . . 2 . . Heat Flow Errors 2 | . . 1 1 . Parts Rejected 1 | . . 1 . . Data Loss (minor) 1 | . . . 1 . Overload Shots . | . . . . . Overflow Damage 8 | . . 8 . . Projectiles 8 | . . 8 . . Explosions . | . . . . . Melee . | . . . . . Knockbacks 4 | . 1 1 1 1 Impact 1 | . 1 . . . Kinetic 3 | . . 1 1 1 Secondary . | . . . . . Self-Inflicted Damage . | . . . . . Shots . | . . . . . Rammed 11 | . 3 7 . 1 Targets Rammed 11 | . 3 7 . 1 Kicked . | . . . . . Crushed . | . . . . . Highest Temperature 346 | . 12 245 147 346 Average Temperature 79 | . 7 36 71 143 Received Heat Transfer 546 | . 24 225 . 297 Siege Activations . | . . . . . Robots Corrupted . | . . . . . Combat Hostiles . | . . . . . Parts Fried . | . . . . . Impact Corruptions . | . . . . . Robots Melted . | . . . . . Combat Hostiles . | . . . . . Parts Melted . | . . . . . Heat Transferred . | . . . . . Parts Sabotaged . | . . . . . Parts Stolen . | . . . . . Parts Stripped . | . . . . . Power Chain Reactions . | . . . . . Alert | -11 -10 -9 -9 -8 ------- Run | Yrd Mat Mat Min Mat Peak Influence 360 | . 193 360 143 156 Initial 93 | . . . 93 55 Average 118 | . 102 140 125 92 Maximum Alert Level 1 | . . 1 . . Low Security (%) 82 | 100 100 67 100 100 Level 1 17 | . . 32 . . Level 2 . | . . . . . Level 3 . | . . . . . Level 4 . | . . . . . Level 5 . | . . . . . High Security . | . . . . . Max Security . | . . . . . Squads Dispatched 4 | . 1 2 . 1 Investigation 1 | . . 1 . . Extermination . | . . . . . Reinforcement 3 | . 1 1 . 1 Assault . | . . . . . Garrison . | . . . . . Intercept . | . . . . . Searches Triggered . | . . . . . Construction Impeded 1 | . . . . 1 Haulers Reinforced . | . . . . . Active Scanning Responses . | . . . . . Cargo Convoy Interrupts . | . . . . . Stealth | -11 -10 -9 -9 -8 --------- Run | Yrd Mat Mat Min Mat Distress Signals 4 | . 1 2 . 1 Communications Jammed . | . . . . . Distress Signals . | . . . . . Times Spotted 58 | . 13 36 2 7 Peak Tracking Total 6 | . 4 6 2 6 Tactical Retreats 1 | . 1 . . . Traps | -11 -10 -9 -9 -8 ------- Run | Yrd Mat Mat Min Mat Traps Triggered 3 | . . 3 . . Indirectly . | . . . . . Trap Hack Attempts . | . . . . . Triggered . | . . . . . Disarmed . | . . . . . Reprogrammed . | . . . . . Reused . | . . . . . Traps Extracted . | . . . . . Installed . | . . . . . Triggered . | . . . . . Machines | -11 -10 -9 -9 -8 ---------- Run | Yrd Mat Mat Min Mat Machines Disabled 1 | . . . . 1 Max in Single Turn 1 | . . . . 1 Machines Repaired . | . . . . . Machines Dismantled . | . . . . . Machines Sabotaged . | . . . . . Overloaded Fab Kills . | . . . . . Hacking | -11 -10 -9 -9 -8 --------- Run | Yrd Mat Mat Min Mat Machines Accessed 5 | . 2 2 . 1 Terminals 4 | . 2 1 . 1 Fabricators . | . . . . . Repair Stations . | . . . . . Recycling Units 1 | . . 1 . . Scanalyzers . | . . . . . Garrison Access . | . . . . . Total Hacks 17 | . 7 9 . 1 Successful 6 | . 2 3 . 1 Failed 11 | . 5 6 . . Catastrophic 1 | . . 1 . . Database Lockouts . | . . . . . Manual . | . . . . . Terminals 12 | . 7 4 . 1 Fabricators . | . . . . . Repair Stations . | . . . . . Recycling Units 5 | . . 5 . . Scanalyzers . | . . . . . Garrison Access . | . . . . . Terminal Hacks 4 | . 2 1 . 1 Record 1 | . . 1 . . Emergency Access Points 1 | . 1 . . . Locate Traps 1 | . 1 . . . Zone Layout 1 | . . . . 1 Fabricator Hacks . | . . . . . Repair Station Hacks . | . . . . . Recycling Unit Hacks 2 | . . 2 . . Report Inventory 1 | . . 1 . . Retrieve Components 1 | . . 1 . . Scanalyzer . | . . . . . Garrison Access Hacks . | . . . . . Unauthorized Hacks . | . . . . . Terminals . | . . . . . Fabricators . | . . . . . Repair Stations . | . . . . . Recycling Units . | . . . . . Scanalyzers . | . . . . . Garrison Access . | . . . . . Data Cores Recovered . | . . . . . Used . | . . . . . Hacking Detections 5 | . 2 2 . 1 Full Trace Events 1 | . . 1 . . Feedback Events 1 | . . 1 . . Corruption 1 | . . 1 . . Feedback Blocked . | . . . . . Robot Schematics Acquired . | . . . . . Robots Built . | . . . . . Authchips . | . . . . . Time . | . . . . . Total Robot Build Rating . | . . . . . Part Schematics Acquired . | . . . . . Parts Built . | . . . . . Authchips . | . . . . . Time . | . . . . . Total Part Build Rating . | . . . . . Parts Repaired . | . . . . . Time . | . . . . . Parts Recycled . | . . . . . Recycled Matter . | . . . . . Retrieved Matter . | . . . . . Retrieved Components 9 | . . 9 . . Parts Scanalyzed . | . . . . . Part Schematics Acquired . | . . . . . Parts Damaged . | . . . . . Bothacking | -11 -10 -9 -9 -8 ------------ Run | Yrd Mat Mat Min Mat Used RIF Installer . | . . . . . Robots Hacked . | . . . . . Non-combat . | . . . . . Combat . | . . . . . Robot Hacks Applied . | . . . . . Relay Couplers Released . | . . . . . Fabnet Peak Effective % . | . . . . . Robots Rewired . | . . . . . Allies Hacked . | . . . . . Hacks Repelled . | . . . . . Allies | -11 -10 -9 -9 -8 -------- Run | Yrd Mat Mat Min Mat Total Allies . | . . . . . Largest Group . | . . . . . Highest-Rated Group . | . . . . . Highest-Rated Ally . | . . . . . Total Orders . | . . . . . Ally Attacks . | . . . . . Total Damage . | . . . . . Kills . | . . . . . Allies Corrupted . | . . . . . Allies Melted . | . . . . . Intel | -11 -10 -9 -9 -8 ------- Run | Yrd Mat Mat Min Mat Robot Analysis Total . | . . . . . Derelict Logs Recovered . | . . . . . Drone Launches . | . . . . . Drone Recoveries . | . . . . . Exploration | -11 -10 -9 -9 -8 ------------- Run | Yrd Mat Mat Min Mat Turns Passed 1794 | 96 498 985 90 125 Spaces Moved 834 | 57 259 427 40 51 Core 5 | 3 . . . 2 Treads 829 | 54 259 427 40 49 Legs . | . . . . . Wheels . | . . . . . Hover . | . . . . . Flight . | . . . . . Fastest Speed 50 | 50 160 160 160 160 Average Speed 160 | 154 160 160 160 170 Slowest Speed 300 | 160 160 160 160 300 Overloaded Moves . | . . . . . Propulsion Burnouts . | . . . . . Robots Hopped . | . . . . . Cave-ins Triggered . | . . . . . Exploration Rate (%) 21 | 4 36 36 20 10 Regions Visited 4 Branch Regions 1 Pre-discovered Areas . | . . . . . Known Exits Taken . | . . . . . Unknown Exits Taken 4 | 1 1 1 1 . Scrap Searched . | . . . . . Spaces Dug . | . . . . . Terrain Destroyed 15 | . . 5 . 10 Melee . | . . . . . Projectile 15 | . . 5 . 10 AOE . | . . . . . Terrain Rammed . | . . . . . Walls Destroyed . | . . . . . Machines Disabled . | . . . . . Actions | -11 -10 -9 -9 -8 --------- Run | Yrd Mat Mat Min Mat Total 1064 | 62 299 587 52 64 Wait 54 | . 7 41 6 . Move 830 | 56 258 426 39 51 Hop . | . . . . . Pick Up 9 | . 2 6 . 1 Fast Attach 17 | 6 2 9 . . Attach 4 | . . 2 . 2 Detach 1 | . 1 . . . Swap 4 | . . 4 . . Drop 9 | . . 9 . . Fire 125 | . 26 83 7 9 Melee . | . . . . . Ram 1 | . . . . 1 Kick . | . . . . . Crush 10 | . 3 7 . . Escape Stasis . | . . . . . Rewire . | . . . . . Trap . | . . . . . Miscellaneous . | . . . . . Route ------- -11/Scrapyard -10/Materials (discovered 2 exits: *Mat / [*Min]) -9/Materials -9/Mines -8/Materials History --------- Turn | Location | Event 8 | -11/Scrapyard | Discovered new exit (range 15) 97 | -11/Scrapyard | Entered Materials 307 | -10/Materials | Build established: Mutant 451 | -10/Materials | Discovered new exit (range 9) 560 | -10/Materials | Discovered new exit (range 7) 595 | -10/Materials | Entered another Materials area 595 | -9/Materials | Evolved 2 slots: Propulsion x2 988 | -9/Materials | Discovered new exit (range 15) 992 | -9/Materials | Build established: Scavenger-Mutant 1324 | -9/Materials | Destroyed 7 combat bots 1580 | -9/Materials | Entered Mines 1660 | -9/Mines | Discovered new exit (range 6) 1670 | -9/Mines | Entered Materials 1670 | -8/Materials | Evolved 2 slots: Utility x1, Weapon x1 1795 | -8/Materials | Self-destructed Last Messages --------------- 01778_ K-01 Serf collects debris. 01779_ ALERT: Construction progress impeded, dispatching reinforcements to local area. 01782_ U-05 Engineer builds a Wall. 01782_ U-05 Engineer destroyed. 01782_ K-01 Serf collects debris. 01783_ Imp. Treads destroyed. 01784_ Slammed into G-47 Trooper. 01785_ Critical hit (Burn: +37). 01785_ Imp. Ion Engine destroyed. 01785_ K-01 Serf collects debris. 01785_ Critical hit (Burn: +37). 01787_ K-01 Serf collects debris. 01787_ U-05 Engineer builds a Wall. 01787_ Assault Cannon destroyed. 01788_ K-01 Serf collects debris. 01789_ K-01 Serf destroyed. 01790_ K-01 Serf collects debris. 01793_ R-06 Scavenger destroyed. 01793_ K-01 Serf collects debris. Map ----- +----------------------------------------------------+ | ?????? #????????????????????????? | | ?????? #????????????????????????? | | ??????????########### #????????????????????????? | | ????????????????????# #????????????????????????? | | ????????????######### ##########???????????????? | | ????????????? # # #???????????????? | | ?????????????"""" # # "#???????????????? | | ???????????? """" # # "#???????????????? | | ???????????# """" # # "#???????????????? | | ???????????# / + """ T#???????????????? | | ???????????# """" # # """ "#?????????#####?? | | ???????????? """" # # """ "#?????????# ?? | | ?????????????"""" # # """ "#?????????# ?? | | ????????????? # # #?????????# ?? | | ????????????######### ##########?????????# ?? | | ????????????????????# #???# #????????????# ?? | | ???????????????????## #####?#########????# ?? | | ???????????????????## # # #????# ?? | | ?????????############|! # # """ #????# ?? | | ??????? !%= # """ # """ #????####/?? | | ??????? w =*! # R" # """ #??????# ?? | | ??????? =%=# """ # ######## ?? | | ????????########"#### !*# # + ?? | | ???????????????##???# ###+######+#### ?? | | ????????????????????# rag*%! k % ?? | | ????????????????????# rg @! % ????????? | | ????????????????????# % k ????????? | | ????????????????????# ###+;#### ????????? | | ????????????????????# ##?? ?????? %?????????? | | ????????????????????# ##??? #?????????????????? | | ????????????????????# ##???? #?????????????????? | | ????????????????????# #??????#?????????????????? | | ????????????????????# #????????????????????????? | | ????????????????????# % #????????????????????????? | | ????????????????????% % ????????????????????????? | | ???????????????????? ????????????????????????? | | ???????????????????# ????????????????????????? | | ???????????????????# % ????????????????????????? | | ???????????????????#! ????????????????????????? | | ????????????????????#####????????????????????????? | | ?????????????????????????????????????????????????? | | ?????????????????????????????????????????????????? | | ?????????????????????????????????????????????????? | | ?????????????????????????????????????????????????? | | ?????????????????????????????????????????????????? | | ?????????????????????????????????????????????????? | | ?????????????????????????????????????????????????? | | ?????????????????????????????????????????????????? | | ?????????????????????????????????????????????????? | | ?????????????????????????????????????????????????? | +----------------------------------------------------+ Best States ------------- Heat Dissipation 31 Energy Generation 12 Energy Capacity 265 Matter Stores 300 Matter Capacity 400 Sight Range 16 Robot Scan Range 14 Terrain Scan Density 10 Power Shielding 33 Evasion (%) 40 Recoil Reduction 4 Item Schematics ----------------- None Robot Schematics ------------------ None Fabricated ------------ Nothing Alien Tech Used ----------------- None Achievements -------------- None Challenges ------------ None Game ------ Seed LatentSalvagePenetrator Manual? 0 Play Time 00:13:22 Cumulative 9.0 hours Start 2024.04.09 @ 16:21:43 End 2024.04.09 @ 16:33:58 Sessions 1 Manual Loads 0 Difficulty Rogue Special Mode None Game No. 26 Rogue 23 Adventurer 3 Explorer 0 Win Type - Total 0 Types 0/0/0/0/0/0/0/0/0 Lore% 8 Gallery% 14 Achievement% 14 Wizard Run 0 Options --------- Layout 1 ASCII 0 Keyboard 1 Movement Numpad Keybinds 0 Fullscreen 2 Font 24/Smallcaps Map View 50x35 Zoom Use 0% Tactical HUD 1 Map Filters NONE Filters NONE Steam 1 RUN: cd3b8e4c-eafd-423d-91d3-ad7893a5436a